[Event "Titled Tuesday Blitz March 15 Late 2022"]
[White "Martinez Alcantara, Jose Eduardo"]
[Black "Senft, Sean"]
[WhiteFideId "3805662"]
[BlackFideId "2044960"]
[WhiteElo "2690"]
[BlackElo "1881"]
[Result "1-0"]
[Round "02"]
[TimeControl "180+1"]
[Date "2022.03.16"]
[WhiteClock "0:00:17"]
[BlackClock "0:00:17"]

1. e4 {[%clk 0:02:54]}  c5 {[%clk 0:02:59]} 2. Nf3 {[%clk 0:02:54]}  d6 {[%clk 0:03:00]} 3. Bc4 {[%clk 0:02:52]}  Nf6 {[%clk 0:03:00]} 4. d3 {[%clk 0:02:52]}  e6 {[%clk 0:03:00]} 5. Bb3 {[%clk 0:02:51]}  Be7 {[%clk 0:03:01]} 6. Nc3 {[%clk 0:02:51]}  O-O {[%clk 0:03:02]} 7. O-O {[%clk 0:02:51]}  Nc6 {[%clk 0:03:02]} 8. a3 {[%clk 0:02:51]}  Rb8 {[%clk 0:03:03]} 9. Ne2 {[%clk 0:02:50]}  b5 {[%clk 0:03:03]} 10. Ng3 {[%clk 0:02:50]}  Bb7 {[%clk 0:03:03]} 11. c3 {[%clk 0:02:51]}  Ne5 {[%clk 0:03:00]} 12. Bc2 {[%clk 0:02:44]}  Nxf3+ {[%clk 0:02:59]} 13. Qxf3 {[%clk 0:02:45]}  Qc7 {[%clk 0:02:54]} 14. Bf4 {[%clk 0:02:44]}  Rfe8 {[%clk 0:02:50]} 15. Rfe1 {[%clk 0:02:44]}  h6 {[%clk 0:02:42]} 16. Rac1 {[%clk 0:02:43]}  e5 {[%clk 0:02:38]} 17. Be3 {[%clk 0:02:41]}  Bc8 {[%clk 0:02:38]} 18. Nf5 {[%clk 0:02:41]}  Bxf5 {[%clk 0:02:38]} 19. Qxf5 {[%clk 0:02:42]}  Qc8 {[%clk 0:02:39]} 20. Qxc8 {[%clk 0:02:20]}  Rexc8 {[%clk 0:02:40]} 21. h3 {[%clk 0:02:16]}  Ne8 {[%clk 0:02:36]} 22. g3 {[%clk 0:02:15]}  Nc7 {[%clk 0:02:37]} 23. Bd1 {[%clk 0:02:14]}  Ne6 {[%clk 0:02:36]} 24. h4 {[%clk 0:02:14]}  a5 {[%clk 0:02:36]} 25. Bg4 {[%clk 0:02:07]}  Rc7 {[%clk 0:02:35]} 26. Kg2 {[%clk 0:02:01]}  Rcb7 {[%clk 0:02:32]} 27. Ra1 {[%clk 0:01:49]}  b4 {[%clk 0:02:31]} 28. axb4 {[%clk 0:01:50]}  axb4 {[%clk 0:02:31]} 29. Rec1 {[%clk 0:01:44]}  bxc3 {[%clk 0:02:31]} 30. bxc3 {[%clk 0:01:45]}  Kf8 {[%clk 0:02:17]} 31. Ra6 {[%clk 0:01:43]}  Ke8 {[%clk 0:02:15]} 32. Rca1 {[%clk 0:01:37]}  Kd7 {[%clk 0:02:15]} 33. Ra7 {[%clk 0:01:26]}  Kc6 {[%clk 0:02:08]} 34. Bh5 {[%clk 0:01:24]}  Nd8 {[%clk 0:02:07]} 35. Bd1 {[%clk 0:01:20]}  Rxa7 {[%clk 0:02:06]} 36. Rxa7 {[%clk 0:01:21]}  Rb7 {[%clk 0:02:06]} 37. Ra3 {[%clk 0:01:18]}  Kb6 {[%clk 0:01:54]} 38. Ba4 {[%clk 0:01:08]}  Ra7 {[%clk 0:01:53]} 39. Rb3+ {[%clk 0:01:08]}  Kc7 {[%clk 0:01:53]} 40. Be8 {[%clk 0:01:06]}  f6 {[%clk 0:01:48]} 41. Kf3 {[%clk 0:00:56]}  Ra1 {[%clk 0:01:19]} 42. Kg4 {[%clk 0:00:55]}  Rd1 {[%clk 0:01:18]} 43. c4 {[%clk 0:00:34]}  Ne6 {[%clk 0:01:12]} 44. Ra3 {[%clk 0:00:29]}  Kb7 {[%clk 0:01:10]} 45. Bf7 {[%clk 0:00:25]}  Nf8 {[%clk 0:01:08]} 46. h5 {[%clk 0:00:24]}  Rb1 {[%clk 0:01:04]} 47. Bd5+ {[%clk 0:00:24]}  Kc7 {[%clk 0:00:57]} 48. Ra7+ {[%clk 0:00:24]}  Kd8 {[%clk 0:00:56]} 49. Bd2 {[%clk 0:00:24]}  Rb2 {[%clk 0:00:26]} 50. Ba5+ {[%clk 0:00:23]}  Ke8 {[%clk 0:00:26]} 51. f4 {[%clk 0:00:24]}  exf4 {[%clk 0:00:25]} 52. gxf4 {[%clk 0:00:25]}  Rg2+ {[%clk 0:00:20]} 53. Kf3 {[%clk 0:00:24]}  Rh2 {[%clk 0:00:20]} 54. Bc6+ {[%clk 0:00:23]}  Kf7 {[%clk 0:00:20]} 55. Bd8 {[%clk 0:00:23]}  Rxh5 {[%clk 0:00:19]} 56. Bxe7 {[%clk 0:00:19]}  Rh3+ {[%clk 0:00:18]} 57. Ke2 {[%clk 0:00:19]}  Rh2+ {[%clk 0:00:18]} 58. Kd1 {[%clk 0:00:19]}  h5 {[%clk 0:00:18]} 59. Bxd6+ {[%clk 0:00:19]}  Ke6 {[%clk 0:00:17]} 60. Bxf8 {[%clk 0:00:17]}  h4 {[%clk 0:00:17]} 61. Bd5# {[%clk 0:00:17]} 1-0


[Site "https://www.chess.com"]

[Event "Titled Tuesday Blitz March 15 Late 2022"]
[White "Mekhitarian, Krikor Sevag"]
[Black "Rabineau, Clement"]
[WhiteFideId "2107660"]
[BlackFideId "628891"]
[WhiteElo "2598"]
[BlackElo "2237"]
[Result "1-0"]
[Round "02"]
[TimeControl "180+1"]
[Date "2022.03.16"]
[WhiteClock "0:00:05"]
[BlackClock "0:00:01"]

1. e4 {[%clk 0:03:00]}  d6 {[%clk 0:02:59]} 2. d4 {[%clk 0:03:00]}  g6 {[%clk 0:03:00]} 3. Nc3 {[%clk 0:02:59]}  Bg7 {[%clk 0:03:00]} 4. Be3 {[%clk 0:02:54]}  a6 {[%clk 0:03:00]} 5. h4 {[%clk 0:02:54]}  h6 {[%clk 0:03:00]} 6. f4 {[%clk 0:02:52]}  h5 {[%clk 0:02:57]} 7. Nf3 {[%clk 0:02:52]}  Nh6 {[%clk 0:02:56]} 8. Bd3 {[%clk 0:02:52]}  Nd7 {[%clk 0:02:54]} 9. Qd2 {[%clk 0:02:42]}  Nf6 {[%clk 0:02:52]} 10. O-O-O {[%clk 0:02:41]}  Nfg4 {[%clk 0:02:51]} 11. Bg1 {[%clk 0:02:41]}  c6 {[%clk 0:02:43]} 12. Kb1 {[%clk 0:02:40]}  b5 {[%clk 0:02:38]} 13. Ne2 {[%clk 0:02:26]}  Qc7 {[%clk 0:02:21]} 14. c3 {[%clk 0:02:20]}  Bd7 {[%clk 0:02:09]} 15. Ng3 {[%clk 0:02:20]}  e6 {[%clk 0:01:28]} 16. f5 {[%clk 0:02:11]}  exf5 {[%clk 0:01:23]} 17. exf5 {[%clk 0:02:11]}  Nxf5 {[%clk 0:01:19]} 18. Nxf5 {[%clk 0:02:11]}  Bxf5 {[%clk 0:01:18]} 19. Re1+ {[%clk 0:02:10]}  Kf8 {[%clk 0:00:39]} 20. Bxf5 {[%clk 0:02:09]}  gxf5 {[%clk 0:00:40]} 21. Qd3 {[%clk 0:02:09]}  Qd7 {[%clk 0:00:36]} 22. Be3 {[%clk 0:01:55]}  Re8 {[%clk 0:00:35]} 23. Rhf1 {[%clk 0:01:54]}  a5 {[%clk 0:00:17]} 24. Bd2 {[%clk 0:01:49]}  Rxe1+ {[%clk 0:00:15]} 25. Bxe1 {[%clk 0:01:49]}  Rh6 {[%clk 0:00:15]} 26. Bd2 {[%clk 0:01:48]}  Re6 {[%clk 0:00:15]} 27. Ng5 {[%clk 0:01:48]}  Bf6 {[%clk 0:00:07]} 28. Nxe6+ {[%clk 0:01:41]}  fxe6 {[%clk 0:00:07]} 29. g3 {[%clk 0:01:41]}  Qf7 {[%clk 0:00:06]} 30. Bf4 {[%clk 0:01:39]}  Qd7 {[%clk 0:00:03]} 31. a3 {[%clk 0:01:38]}  Ke7 {[%clk 0:00:04]} 32. Ka2 {[%clk 0:01:39]}  a4 {[%clk 0:00:04]} 33. Re1 {[%clk 0:01:36]}  e5 {[%clk 0:00:04]} 34. Bd2 {[%clk 0:01:32]}  Qe6+ {[%clk 0:00:03]} 35. Kb1 {[%clk 0:01:32]}  e4 {[%clk 0:00:04]} 36. Qf1 {[%clk 0:01:32]}  d5 {[%clk 0:00:04]} 37. Bf4 {[%clk 0:01:30]}  Kf7 {[%clk 0:00:03]} 38. Qe2 {[%clk 0:01:30]}  Kg6 {[%clk 0:00:04]} 39. Rf1 {[%clk 0:01:30]}  Be7 {[%clk 0:00:04]} 40. Qd2 {[%clk 0:01:24]}  Bf6 {[%clk 0:00:03]} 41. Re1 {[%clk 0:01:19]}  Be7 {[%clk 0:00:04]} 42. Bg5 {[%clk 0:01:13]}  Bd6 {[%clk 0:00:04]} 43. Bd8 {[%clk 0:01:14]}  Bxg3 {[%clk 0:00:04]} 44. Qg5+ {[%clk 0:01:14]}  Kf7 {[%clk 0:00:04]} 45. Qxh5+ {[%clk 0:01:15]}  Kf8 {[%clk 0:00:03]} 46. Qh8+ {[%clk 0:01:03]}  Kf7 {[%clk 0:00:03]} 47. Rg1 {[%clk 0:01:00]}  f4 {[%clk 0:00:03]} 48. Qh7+ {[%clk 0:01:00]}  Ke8 {[%clk 0:00:02]} 49. Bg5 {[%clk 0:00:49]}  e3 {[%clk 0:00:02]} 50. Ka2 {[%clk 0:00:47]}  Qe4 {[%clk 0:00:01]} 51. Qg8+ {[%clk 0:00:47]}  Kd7 {[%clk 0:00:01]} 52. Qd8+ {[%clk 0:00:47]}  Ke6 {[%clk 0:00:01]} 53. Qe7+ {[%clk 0:00:46]}  Kf5 {[%clk 0:00:02]} 54. Qf7+ {[%clk 0:00:47]}  Nf6 {[%clk 0:00:01]} 55. Qxf6+ {[%clk 0:00:45]}  Kg4 {[%clk 0:00:02]} 56. Bxf4 {[%clk 0:00:11]}  Qxf4 {[%clk 0:00:02]} 57. Qg7+ {[%clk 0:00:12]}  Kf3 {[%clk 0:00:02]} 58. Qg6 {[%clk 0:00:09]}  e2 {[%clk 0:00:03]} 59. Rb1 {[%clk 0:00:04]}  e1=Q {[%clk 0:00:02]} 60. Qh5+ {[%clk 0:00:05]}  Ke3 {[%clk 0:00:02]} 61. Rxe1+ {[%clk 0:00:04]}  Bxe1 {[%clk 0:00:03]} 62. Qd1 {[%clk 0:00:05]}  Kf2 {[%clk 0:00:02]} 63. h5 {[%clk 0:00:05]}  Qe3 {[%clk 0:00:01]} 64. Qg4 {[%clk 0:00:04]}  Qc1 {[%clk 0:00:01]} 65. Qf5+ {[%clk 0:00:05]} 1-0


[Site "https://www.chess.com"]

[Event "Titled Tuesday Blitz March 15 Late 2022"]
[White "Naroditsky, Daniel"]
[Black "Matinian, Nikita"]
[WhiteFideId "2026961"]
[BlackFideId "24129100"]
[WhiteElo "2608"]
[BlackElo "2422"]
[Result "1-0"]
[Round "02"]
[TimeControl "180+1"]
[Date "2022.03.15"]
[WhiteClock "0:01:21"]
[BlackClock "0:00:15"]

1. e4 {[%clk 0:03:00]}  e5 {[%clk 0:02:59]} 2. Nf3 {[%clk 0:03:01]}  Nc6 {[%clk 0:02:59]} 3. Nc3 {[%clk 0:03:02]}  Nf6 {[%clk 0:02:59]} 4. g3 {[%clk 0:03:03]}  Bc5 {[%clk 0:02:56]} 5. Bg2 {[%clk 0:03:02]}  d6 {[%clk 0:02:57]} 6. d3 {[%clk 0:03:03]}  h5 {[%clk 0:02:56]} 7. h3 {[%clk 0:03:01]}  Nd4 {[%clk 0:02:49]} 8. Be3 {[%clk 0:02:58]}  Nxf3+ {[%clk 0:02:47]} 9. Qxf3 {[%clk 0:02:57]}  Be6 {[%clk 0:02:44]} 10. Bxc5 {[%clk 0:02:51]}  dxc5 {[%clk 0:02:45]} 11. Qe3 {[%clk 0:02:52]}  Qd4 {[%clk 0:02:42]} 12. Qg5 {[%clk 0:02:42]}  O-O-O {[%clk 0:02:23]} 13. Qxg7 {[%clk 0:02:23]}  Nd7 {[%clk 0:02:22]} 14. Qg5 {[%clk 0:02:21]}  c4 {[%clk 0:02:19]} 15. O-O {[%clk 0:02:08]}  Rhg8 {[%clk 0:02:12]} 16. Qxh5 {[%clk 0:02:02]}  cxd3 {[%clk 0:02:11]} 17. cxd3 {[%clk 0:02:00]}  Rxg3 {[%clk 0:02:08]} 18. Ne2 {[%clk 0:02:00]}  Rxg2+ {[%clk 0:02:09]} 19. Kxg2 {[%clk 0:02:01]}  Qxd3 {[%clk 0:02:10]} 20. Ng3 {[%clk 0:02:00]}  Rg8 {[%clk 0:02:04]} 21. Kh2 {[%clk 0:01:53]}  Nf6 {[%clk 0:01:59]} 22. Qxe5 {[%clk 0:01:51]}  Qf3 {[%clk 0:01:27]} 23. Rac1 {[%clk 0:01:50]}  c6 {[%clk 0:00:55]} 24. Rc3 {[%clk 0:01:49]}  Ng4+ {[%clk 0:00:42]} 25. hxg4 {[%clk 0:01:48]}  Qxg4 {[%clk 0:00:43]} 26. Rh1 {[%clk 0:01:27]}  Rd8 {[%clk 0:00:15]} 27. Kg2 {[%clk 0:01:21]} 1-0


[Site "https://www.chess.com"]

[Event "Titled Tuesday Blitz March 15 Late 2022"]
[White "Petrova, Irina"]
[Black "Swicarz, Maciej"]
[WhiteFideId "14124122"]
[BlackFideId "1113585"]
[WhiteElo "1993"]
[BlackElo "2057"]
[Result "0-1"]
[Round "02"]
[TimeControl "180+1"]
[Date "2022.03.16"]
[WhiteClock "0:00:06"]
[BlackClock "0:00:34"]

1. e4 {[%clk 0:02:59]}  c5 {[%clk 0:02:55]} 2. Nf3 {[%clk 0:02:59]}  d6 {[%clk 0:02:54]} 3. Bb5+ {[%clk 0:02:59]}  Nd7 {[%clk 0:02:53]} 4. O-O {[%clk 0:02:58]}  a6 {[%clk 0:02:50]} 5. Bxd7+ {[%clk 0:02:58]}  Bxd7 {[%clk 0:02:51]} 6. d4 {[%clk 0:02:58]}  cxd4 {[%clk 0:02:50]} 7. Qxd4 {[%clk 0:02:59]}  Nf6 {[%clk 0:02:49]} 8. a4 {[%clk 0:02:55]}  g6 {[%clk 0:02:48]} 9. c4 {[%clk 0:02:46]}  Bg7 {[%clk 0:02:48]} 10. Nc3 {[%clk 0:02:46]}  O-O {[%clk 0:02:47]} 11. Qd3 {[%clk 0:02:44]}  Rc8 {[%clk 0:02:45]} 12. Be3 {[%clk 0:02:33]}  Qc7 {[%clk 0:02:39]} 13. b3 {[%clk 0:02:29]}  Bc6 {[%clk 0:02:09]} 14. Rac1 {[%clk 0:02:25]}  Rfd8 {[%clk 0:02:02]} 15. Nd5 {[%clk 0:02:22]}  Bxd5 {[%clk 0:01:58]} 16. cxd5 {[%clk 0:02:21]}  Qd7 {[%clk 0:01:55]} 17. Bb6 {[%clk 0:02:18]}  Rxc1 {[%clk 0:01:52]} 18. Rxc1 {[%clk 0:02:18]}  Rc8 {[%clk 0:01:52]} 19. Rc4 {[%clk 0:02:13]}  Rxc4 {[%clk 0:01:46]} 20. Qxc4 {[%clk 0:02:14]}  Qg4 {[%clk 0:01:36]} 21. Nd2 {[%clk 0:02:13]}  Qd1+ {[%clk 0:01:35]} 22. Nf1 {[%clk 0:02:12]}  h5 {[%clk 0:01:30]} 23. f3 {[%clk 0:02:07]}  Kh7 {[%clk 0:01:27]} 24. a5 {[%clk 0:02:01]}  Nd7 {[%clk 0:01:26]} 25. Bf2 {[%clk 0:01:57]}  Ne5 {[%clk 0:01:22]} 26. Qc7 {[%clk 0:01:32]}  Qxb3 {[%clk 0:01:20]} 27. Qxe7 {[%clk 0:01:29]}  Qb4 {[%clk 0:01:19]} 28. Bb6 {[%clk 0:01:23]}  Nc4 {[%clk 0:01:12]} 29. Bf2 {[%clk 0:00:39]}  Nxa5 {[%clk 0:01:02]} 30. Qxf7 {[%clk 0:00:38]}  Nb3 {[%clk 0:00:58]} 31. h4 {[%clk 0:00:37]}  a5 {[%clk 0:00:57]} 32. Ng3 {[%clk 0:00:33]}  Nd2 {[%clk 0:00:49]} 33. Nxh5 {[%clk 0:00:28]}  Qb1+ {[%clk 0:00:48]} 34. Kh2 {[%clk 0:00:28]}  Nf1+ {[%clk 0:00:48]} 35. Kh3 {[%clk 0:00:26]}  Qb2 {[%clk 0:00:41]} 36. Nf4 {[%clk 0:00:22]}  Qf6 {[%clk 0:00:39]} 37. Qxb7 {[%clk 0:00:08]}  Qxf4 {[%clk 0:00:36]} 38. Qa7 {[%clk 0:00:06]}  Qh2+ {[%clk 0:00:34]} 0-1


[Site "https://www.chess.com"]

[Event "Titled Tuesday Blitz March 15 Late 2022"]
[White "Plazuelo Pascual, Juan"]
[Black "Awoki, Daniel Teidi"]
[WhiteFideId "32059566"]
[BlackFideId "2100827"]
[WhiteElo "2364"]
[BlackElo "2023"]
[Result "1-0"]
[Round "02"]
[TimeControl "180+1"]
[Date "2022.03.16"]
[WhiteClock "0:02:26"]
[BlackClock "0:02:19"]

1. Nf3 {[%clk 0:02:58]}  d5 {[%clk 0:02:59]} 2. g3 {[%clk 0:02:58]}  e6 {[%clk 0:03:00]} 3. Bg2 {[%clk 0:02:58]}  Nf6 {[%clk 0:03:00]} 4. O-O {[%clk 0:02:58]}  Be7 {[%clk 0:03:01]} 5. c4 {[%clk 0:02:58]}  O-O {[%clk 0:03:00]} 6. b3 {[%clk 0:02:58]}  c5 {[%clk 0:02:56]} 7. cxd5 {[%clk 0:02:56]}  exd5 {[%clk 0:02:57]} 8. d4 {[%clk 0:02:56]}  cxd4 {[%clk 0:02:58]} 9. Nxd4 {[%clk 0:02:55]}  Nc6 {[%clk 0:02:59]} 10. Bb2 {[%clk 0:02:54]}  Re8 {[%clk 0:02:52]} 11. Nd2 {[%clk 0:02:53]}  Nxd4 {[%clk 0:02:50]} 12. Bxd4 {[%clk 0:02:53]}  Bf5 {[%clk 0:02:41]} 13. Qc1 {[%clk 0:02:47]}  Ne4 {[%clk 0:02:31]} 14. Rd1 {[%clk 0:02:40]}  Bf6 {[%clk 0:02:26]} 15. Nxe4 {[%clk 0:02:31]}  Bxe4 {[%clk 0:02:24]} 16. Qb2 {[%clk 0:02:27]}  Bxd4 {[%clk 0:02:19]} 17. Rxd4 {[%clk 0:02:27]}  Bxg2 {[%clk 0:02:19]} 18. Kxg2 {[%clk 0:02:27]}  Rxe2 {[%clk 0:02:19]} 19. Qxe2 {[%clk 0:02:26]} 1-0


[Site "https://www.chess.com"]

[Event "Titled Tuesday Blitz March 15 Late 2022"]
[White "Przybylski, Wojciech"]
[Black "Oro, Luis"]
[WhiteFideId "1117599"]
[BlackFideId "104094"]
[WhiteElo "2133"]
[BlackElo "2258"]
[Result "1-0"]
[Round "02"]
[TimeControl "180+1"]
[Date "2022.03.16"]
[WhiteClock "0:00:05"]
[BlackClock "0:00:02"]

1. d4 {[%clk 0:02:52]}  Nf6 {[%clk 0:02:59]} 2. c4 {[%clk 0:02:50]}  b6 {[%clk 0:02:56]} 3. Nc3 {[%clk 0:02:50]}  Bb7 {[%clk 0:02:56]} 4. Qc2 {[%clk 0:02:50]}  e6 {[%clk 0:02:53]} 5. e4 {[%clk 0:02:48]}  Bb4 {[%clk 0:02:35]} 6. Bd3 {[%clk 0:02:47]}  d6 {[%clk 0:02:21]} 7. Ne2 {[%clk 0:02:47]}  h6 {[%clk 0:02:13]} 8. O-O {[%clk 0:02:46]}  O-O {[%clk 0:02:10]} 9. a3 {[%clk 0:02:43]}  Bxc3 {[%clk 0:02:09]} 10. bxc3 {[%clk 0:02:44]}  Nbd7 {[%clk 0:02:01]} 11. f4 {[%clk 0:02:43]}  e5 {[%clk 0:01:57]} 12. Ng3 {[%clk 0:02:37]}  c5 {[%clk 0:01:33]} 13. d5 {[%clk 0:02:32]}  exf4 {[%clk 0:01:19]} 14. Bxf4 {[%clk 0:02:29]}  Ne8 {[%clk 0:01:04]} 15. Nf5 {[%clk 0:02:29]}  Ne5 {[%clk 0:01:02]} 16. Be2 {[%clk 0:01:58]}  Nf6 {[%clk 0:00:56]} 17. Rae1 {[%clk 0:01:40]}  Bc8 {[%clk 0:00:55]} 18. Nxh6+ {[%clk 0:01:36]}  gxh6 {[%clk 0:00:53]} 19. Bxh6 {[%clk 0:01:37]}  Nh7 {[%clk 0:00:49]} 20. Rf4 {[%clk 0:01:28]}  Re8 {[%clk 0:00:34]} 21. Ref1 {[%clk 0:01:20]}  Nf8 {[%clk 0:00:27]} 22. Bh5 {[%clk 0:01:14]}  Nfg6 {[%clk 0:00:19]} 23. Rf6 {[%clk 0:01:08]}  Qe7 {[%clk 0:00:15]} 24. Qf2 {[%clk 0:00:59]}  Bg4 {[%clk 0:00:11]} 25. Bxg6 {[%clk 0:00:50]}  fxg6 {[%clk 0:00:09]} 26. Qh4 {[%clk 0:00:50]}  Bd7 {[%clk 0:00:07]} 27. Rf8+ {[%clk 0:00:44]}  Qxf8 {[%clk 0:00:04]} 28. Bxf8 {[%clk 0:00:38]}  Rxf8 {[%clk 0:00:05]} 29. Qe7 {[%clk 0:00:22]}  Rxf1+ {[%clk 0:00:04]} 30. Kxf1 {[%clk 0:00:22]}  Bg4 {[%clk 0:00:03]} 31. Qxd6 {[%clk 0:00:17]}  Re8 {[%clk 0:00:03]} 32. h3 {[%clk 0:00:16]}  Bc8 {[%clk 0:00:02]} 33. Kg1 {[%clk 0:00:16]}  Kf7 {[%clk 0:00:02]} 34. Kh2 {[%clk 0:00:16]}  Nxc4 {[%clk 0:00:02]} 35. Qc7+ {[%clk 0:00:13]}  Kf6 {[%clk 0:00:02]} 36. d6 {[%clk 0:00:08]}  Be6 {[%clk 0:00:02]} 37. d7 {[%clk 0:00:08]}  Bxd7 {[%clk 0:00:03]} 38. Qxd7 {[%clk 0:00:08]}  Re6 {[%clk 0:00:03]} 39. Qd5 {[%clk 0:00:08]}  Ne3 {[%clk 0:00:02]} 40. Qd8+ {[%clk 0:00:06]}  Kf7 {[%clk 0:00:02]} 41. Qd3 {[%clk 0:00:05]} 1-0


[Site "https://www.chess.com"]

[Event "Titled Tuesday Blitz March 15 Late 2022"]
[White "Quesada Perez, Yuniesky"]
[Black "Riehle, Marco"]
[WhiteFideId "3504409"]
[BlackFideId "12904392"]
[WhiteElo "2622"]
[BlackElo "2462"]
[Result "1/2-1/2"]
[Round "02"]
[TimeControl "180+1"]
[Date "2022.03.16"]
[WhiteClock "0:00:19"]
[BlackClock "0:00:16"]

1. e4 {[%clk 0:02:55]}  e5 {[%clk 0:02:59]} 2. Nf3 {[%clk 0:02:55]}  Nf6 {[%clk 0:02:59]} 3. d3 {[%clk 0:02:44]}  Nc6 {[%clk 0:02:59]} 4. Be2 {[%clk 0:02:43]}  Bc5 {[%clk 0:02:58]} 5. O-O {[%clk 0:02:42]}  d6 {[%clk 0:02:59]} 6. c3 {[%clk 0:02:40]}  O-O {[%clk 0:02:56]} 7. b4 {[%clk 0:02:39]}  Bb6 {[%clk 0:02:56]} 8. Nbd2 {[%clk 0:02:38]}  a5 {[%clk 0:02:51]} 9. b5 {[%clk 0:02:36]}  Ne7 {[%clk 0:02:52]} 10. Nc4 {[%clk 0:02:36]}  Ba7 {[%clk 0:02:46]} 11. Rb1 {[%clk 0:02:14]}  Be6 {[%clk 0:02:42]} 12. b6 {[%clk 0:02:08]}  cxb6 {[%clk 0:02:31]} 13. Nfd2 {[%clk 0:02:05]}  Ng6 {[%clk 0:02:21]} 14. a4 {[%clk 0:02:00]}  Nf4 {[%clk 0:02:15]} 15. Na3 {[%clk 0:01:57]}  Rc8 {[%clk 0:02:10]} 16. Nb5 {[%clk 0:01:57]}  Bb8 {[%clk 0:02:10]} 17. c4 {[%clk 0:01:57]}  Nd7 {[%clk 0:02:03]} 18. Nb3 {[%clk 0:01:51]}  Nxe2+ {[%clk 0:01:56]} 19. Qxe2 {[%clk 0:01:52]}  Nc5 {[%clk 0:01:57]} 20. Nxc5 {[%clk 0:01:50]}  bxc5 {[%clk 0:01:58]} 21. f4 {[%clk 0:01:44]}  f5 {[%clk 0:01:57]} 22. fxe5 {[%clk 0:01:40]}  dxe5 {[%clk 0:01:54]} 23. Nc3 {[%clk 0:01:39]}  Qd4+ {[%clk 0:01:48]} 24. Be3 {[%clk 0:01:26]}  Qxc3 {[%clk 0:01:47]} 25. Rfc1 {[%clk 0:01:26]}  Qa3 {[%clk 0:01:37]} 26. Ra1 {[%clk 0:01:26]}  Qb4 {[%clk 0:01:36]} 27. Rcb1 {[%clk 0:01:25]}  Qc3 {[%clk 0:01:28]} 28. Rc1 {[%clk 0:01:25]}  Qb4 {[%clk 0:01:28]} 29. Rcb1 {[%clk 0:01:24]}  fxe4 {[%clk 0:01:25]} 30. Rxb4 {[%clk 0:01:22]}  cxb4 {[%clk 0:01:25]} 31. c5 {[%clk 0:01:19]}  exd3 {[%clk 0:01:14]} 32. Qxd3 {[%clk 0:01:20]}  Rcd8 {[%clk 0:01:12]} 33. Qb5 {[%clk 0:01:19]}  b3 {[%clk 0:01:04]} 34. Qxb7 {[%clk 0:01:11]}  Rd3 {[%clk 0:01:00]} 35. Re1 {[%clk 0:01:09]}  Bc4 {[%clk 0:00:47]} 36. h3 {[%clk 0:00:54]}  h6 {[%clk 0:00:39]} 37. Qe4 {[%clk 0:00:45]}  Ba6 {[%clk 0:00:39]} 38. Qc6 {[%clk 0:00:45]}  Bc4 {[%clk 0:00:32]} 39. Qe4 {[%clk 0:00:40]}  Ba6 {[%clk 0:00:32]} 40. Bxh6 {[%clk 0:00:34]}  gxh6 {[%clk 0:00:26]} 41. Qg6+ {[%clk 0:00:34]}  Kh8 {[%clk 0:00:26]} 42. Qxh6+ {[%clk 0:00:34]}  Kg8 {[%clk 0:00:26]} 43. Qxa6 {[%clk 0:00:31]}  Rg3 {[%clk 0:00:20]} 44. Qe6+ {[%clk 0:00:29]}  Rf7 {[%clk 0:00:19]} 45. Rb1 {[%clk 0:00:20]}  e4 {[%clk 0:00:18]} 46. Rxb3 {[%clk 0:00:19]}  Rxb3 {[%clk 0:00:17]} 47. Qxb3 {[%clk 0:00:20]}  Bc7 {[%clk 0:00:18]} 48. Qd5 {[%clk 0:00:19]}  e3 {[%clk 0:00:17]} 49. Qe6 {[%clk 0:00:20]}  Kf8 {[%clk 0:00:16]} 50. Qxe3 {[%clk 0:00:19]}  Kg8 {[%clk 0:00:14]} 51. g4 {[%clk 0:00:18]}  Bd8 {[%clk 0:00:12]} 52. Qe8+ {[%clk 0:00:18]}  Kg7 {[%clk 0:00:12]} 53. Qxd8 {[%clk 0:00:18]}  Kh7 {[%clk 0:00:13]} 54. Qd3+ {[%clk 0:00:17]}  Kg7 {[%clk 0:00:14]} 55. c6 {[%clk 0:00:18]}  Kg8 {[%clk 0:00:15]} 56. Qd5 {[%clk 0:00:18]}  Kg7 {[%clk 0:00:16]} 57. Qxf7+ {[%clk 0:00:18]}  Kh8 {[%clk 0:00:16]} 58. c7 {[%clk 0:00:19]} 1/2-1/2


[Site "https://www.chess.com"]

[Event "Titled Tuesday Blitz March 15 Late 2022"]
[White "Rengifo Blancas, Renzo Jhonathan"]
[Black "Daneshvar, Bardiya"]
[WhiteFideId "3807185"]
[BlackFideId "12576468"]
[WhiteElo "2058"]
[BlackElo "2295"]
[Result "0-1"]
[Round "02"]
[TimeControl "180+1"]
[Date "2022.03.16"]
[WhiteClock "0:00:04"]
[BlackClock "0:01:36"]

1. e4 {[%clk 0:02:52]}  Nf6 {[%clk 0:02:58]} 2. e5 {[%clk 0:02:51]}  Nd5 {[%clk 0:02:58]} 3. c4 {[%clk 0:02:51]}  Nb6 {[%clk 0:02:58]} 4. g3 {[%clk 0:02:51]}  c5 {[%clk 0:02:57]} 5. b3 {[%clk 0:02:50]}  g6 {[%clk 0:02:56]} 6. Bb2 {[%clk 0:02:50]}  Bg7 {[%clk 0:02:56]} 7. Bg2 {[%clk 0:02:51]}  O-O {[%clk 0:02:56]} 8. Nf3 {[%clk 0:02:48]}  d6 {[%clk 0:02:55]} 9. O-O {[%clk 0:02:48]}  Nc6 {[%clk 0:02:54]} 10. Re1 {[%clk 0:02:45]}  Bg4 {[%clk 0:02:52]} 11. h3 {[%clk 0:02:40]}  Bxf3 {[%clk 0:02:52]} 12. Bxf3 {[%clk 0:02:38]}  Nxe5 {[%clk 0:02:52]} 13. Bxb7 {[%clk 0:02:33]}  Rb8 {[%clk 0:02:47]} 14. Bg2 {[%clk 0:02:17]}  Nf3+ {[%clk 0:02:46]} 15. Qxf3 {[%clk 0:02:13]}  Bxb2 {[%clk 0:02:46]} 16. Nc3 {[%clk 0:02:13]}  Bxa1 {[%clk 0:02:46]} 17. Rxa1 {[%clk 0:02:14]}  e6 {[%clk 0:02:45]} 18. Re1 {[%clk 0:02:09]}  Qe7 {[%clk 0:02:38]} 19. h4 {[%clk 0:02:08]}  Nd7 {[%clk 0:02:36]} 20. Ne4 {[%clk 0:02:04]}  f5 {[%clk 0:02:34]} 21. Ng5 {[%clk 0:02:04]}  Ne5 {[%clk 0:02:33]} 22. Qc3 {[%clk 0:02:04]}  f4 {[%clk 0:02:24]} 23. Nxe6 {[%clk 0:01:56]}  f3 {[%clk 0:02:18]} 24. Bh3 {[%clk 0:01:44]}  Rf6 {[%clk 0:02:17]} 25. Nf4 {[%clk 0:01:34]}  Rxf4 {[%clk 0:02:13]} 26. gxf4 {[%clk 0:01:32]}  Qxh4 {[%clk 0:02:14]} 27. Rxe5 {[%clk 0:01:26]}  Qxh3 {[%clk 0:02:07]} 28. Rg5 {[%clk 0:01:24]}  Re8 {[%clk 0:02:04]} 29. Qa1 {[%clk 0:01:17]}  Re2 {[%clk 0:01:59]} 30. Rg3 {[%clk 0:00:48]}  Qe6 {[%clk 0:01:56]} 31. Qc3 {[%clk 0:00:36]}  Rxf2 {[%clk 0:01:56]} 32. Qe3 {[%clk 0:00:27]}  Qxe3 {[%clk 0:01:50]} 33. dxe3 {[%clk 0:00:27]}  Rxa2 {[%clk 0:01:50]} 34. Rxf3 {[%clk 0:00:26]}  Kf7 {[%clk 0:01:47]} 35. e4 {[%clk 0:00:26]}  Re2 {[%clk 0:01:46]} 36. e5 {[%clk 0:00:16]}  dxe5 {[%clk 0:01:46]} 37. fxe5+ {[%clk 0:00:17]}  Ke7 {[%clk 0:01:46]} 38. Rh3 {[%clk 0:00:14]}  h5 {[%clk 0:01:45]} 39. Rg3 {[%clk 0:00:15]}  Kf7 {[%clk 0:01:46]} 40. Rf3+ {[%clk 0:00:15]}  Kg7 {[%clk 0:01:46]} 41. Rd3 {[%clk 0:00:15]}  Rxe5 {[%clk 0:01:46]} 42. Rd7+ {[%clk 0:00:15]}  Kf6 {[%clk 0:01:46]} 43. Rxa7 {[%clk 0:00:15]}  Re3 {[%clk 0:01:44]} 44. Ra5 {[%clk 0:00:10]}  Rxb3 {[%clk 0:01:44]} 45. Rxc5 {[%clk 0:00:11]}  Rb2 {[%clk 0:01:44]} 46. Rd5 {[%clk 0:00:10]}  Rc2 {[%clk 0:01:42]} 47. c5 {[%clk 0:00:10]}  h4 {[%clk 0:01:40]} 48. Rd6+ {[%clk 0:00:09]}  Kg5 {[%clk 0:01:38]} 49. c6 {[%clk 0:00:09]}  Kh5 {[%clk 0:01:37]} 50. Re6 {[%clk 0:00:09]}  g5 {[%clk 0:01:37]} 51. Kf1 {[%clk 0:00:06]}  h3 {[%clk 0:01:37]} 52. Ke1 {[%clk 0:00:06]}  h2 {[%clk 0:01:35]} 53. Kd1 {[%clk 0:00:05]}  Rxc6 {[%clk 0:01:36]} 54. Re1 {[%clk 0:00:04]}  g4 {[%clk 0:01:35]} 55. Ke2 {[%clk 0:00:04]}  Re6+ {[%clk 0:01:35]} 56. Kf2 {[%clk 0:00:04]}  Rxe1 {[%clk 0:01:36]} 57. Kg3 {[%clk 0:00:04]}  h1=Q {[%clk 0:01:37]} 58. Kf4 {[%clk 0:00:04]}  Qf3# {[%clk 0:01:36]} 0-1


[Site "https://www.chess.com"]